bitfinex-derivatives/quotes_BNBF0:USTF0_20250425
["timestamp","ask_amount","ask_price","bid_price","bid_amount"]
[1745587975314,0.28881825,604.43,601.21,0.30493337]
[1745587975511,0.28881825,604.43,601.22,0.30493337]
[1745587975716,0.28881825,604.43,601.23,0.30493337]
[1745587975916,0.28881825,604.43,601.24,0.30493337]
[1745587976118,1.24113158,604.33,601.49,1.04807668]
[1745587977417,0.28879788,604.32,601.49,1.04807668]
[1745587978816,0.28879788,604.32,601.5,0.30493337]
[1745587979512,0.28879788,604.32,601.51,0.30493337]
[1745587979718,0.28879788,604.32,601.3,1.04807668]
[1745587979914,0.28879788,604.32,601.31,0.30492521]
[1745587980111,1.24113158,604.79,601.32,0.30492521]
[1745587980316,1.24113158,604.79,601.33,0.30492521]
[1745587980514,0.28875475,604.31,601.34,0.30492521]
[1745587980719,1.24113158,604.79,601.35,0.30492521]
[1745587981019,1.24113158,604.79,601.3,1.04807668]
[1745587981318,1.24113158,604.79,601.31,0.30487719]
[1745587981519,0.2887224,604.78,601.32,0.30487719]
[1745587981717,0.2887224,604.78,601.33,0.30487719]
[1745587981920,1.24113158,604.21,601.5,1.04807668]
[1745587982115,1.24113158,604.21,601.51,0.30487719]
[1745587982315,1.24113158,604.21,601.52,0.30487719]
[1745587982518,1.24113158,604.21,601.53,0.30487719]
[1745587982720,1.24113158,604.21,601.54,0.30487719]
[1745587982917,1.24113158,604.21,601.55,0.30487719]
[1745587983120,1.24113158,604.21,601.56,0.30487719]
[1745587983322,0.28876792,604.2,601.57,0.30487719]
[1745587983522,0.28876792,604.2,601.58,0.30487719]
[1745587983723,0.28876792,604.2,601.5,1.04807668]
[1745587984118,0.28876792,604.2,601.51,0.30487019]
[1745587984323,0.28876792,604.2,601.65,1.04807668]
[1745587984518,0.28876792,604.2,601.66,0.30487019]
[1745587984923,0.28876792,604.2,601.66,1.67187019]
[1745587985126,0.28876792,604.2,601.67,0.30487019]
[1745587985522,0.28876792,604.2,601.66,1.367]
[1745587985723,0.28876792,604.2,601.67,0.30486602]
[1745587985923,0.28876792,604.2,601.68,0.30486602]
[1745587986224,0.28876792,604.2,601.69,0.30486602]
[1745587986423,1.24113158,604.26,601.7,0.30486602]
[1745587986622,1.24113158,604.26,601.67,0.30486602]
[1745587986923,1.24113158,604.26,601.68,0.30486602]
[1745587987222,1.24113158,604.26,601.69,0.30486602]
[1745587987425,1.24113158,604.57,601.68,0.30486602]
[1745587987616,0.2887799,604.25,601.69,0.30486602]
[1745587987821,0.2887799,604.25,601.7,0.30486602]
[1745587988023,1.24113158,604.57,601.68,0.30486602]
[1745587988222,1.24113158,604.57,601.67,1.432]
[1745587988223,1.24113158,604.57,601.69,0.30486602]
[1745587988423,1.24113158,604.57,601.68,0.30486602]
[1745587988826,1.24113158,604.57,601.69,0.30486602]
[1745587989024,1.24113158,604.57,601.7,0.30486602]
[1745587989225,0.28873438,604.56,601.68,0.30486602]
[1745587989828,1.24113158,604.29,601.68,0.30486602]
[1745587991832,1.24113158,604.29,601.67,1.432]
[1745587992041,1.24113158,604.29,601.68,0.30496594]
[1745587992424,0.28879548,604.28,601.68,0.30496594]
[1745587992627,0.28879548,604.28,601.67,1.432]
[1745587993729,0.28879548,604.28,601.68,0.30504351]
[1745587994835,1.24113158,604.1,601.68,0.30504351]
[1745587995431,0.28883983,604.09,601.68,0.30504351]
[1745587996335,0.28883983,604.09,601.67,1.432]
[1745587996634,1.24113158,604.05,601.68,0.30504274]
[1745587997938,1.24113158,604.05,601.67,1.432]
[1745587998130,1.24113158,604.05,601.68,0.30495788]
[1745587998331,0.28879788,604.04,601.68,0.30495788]
[1745587998534,0.28879788,604.04,601.67,1.432]
[1745587998535,0.28879788,604.04,601.69,0.30495788]
[1745587998738,0.28879788,604.04,601.7,0.30495788]
[1745587999034,0.28879788,604.04,601.71,0.30495788]
[1745587999232,0.28879788,604.04,601.72,0.30495788]
[1745587999435,0.28879788,604.04,601.67,1.432]
[1745587999436,1.24113158,603.97,601.73,0.30495788]
[1745587999633,1.24113158,603.97,601.74,0.30490104]
[1745587999831,1.24113158,603.97,601.68,0.30490104]
[1745588000236,1.24113158,603.97,601.69,0.30490104]
[1745588000436,1.24113158,603.97,601.7,0.30490104]
[1745588000633,1.24113158,603.97,601.71,0.30490104]
[1745588000935,1.24113158,603.97,601.72,0.30490104]
[1745588001135,1.24113158,603.97,601.73,0.30490104]
[1745588001333,0.2887811,603.96,601.74,0.30490104]
[1745588001531,1.24113158,603.84,601.82,1.04807668]
[1745588001731,1.24113158,603.84,601.83,0.30490104]
[1745588003337,0.2887811,603.96,601.84,1.096]
[1745588003535,0.2887811,603.96,601.85,0.30490104]
[1745588003736,0.2887811,603.96,601.86,0.30490104]
[1745588004036,0.2887811,603.96,601.84,1.096]
[1745588004234,0.2887811,603.96,601.85,0.30477114]
[1745588004537,0.2887811,603.96,601.86,0.30477114]
[1745588004737,0.2887811,603.96,601.85,0.30477114]
[1745588004938,0.2887811,603.96,601.86,0.30477114]
[1745588005137,0.2887811,603.96,601.85,0.30477114]
[1745588005340,0.2887811,603.96,601.86,0.30477114]
[1745588005638,0.2887811,603.96,601.95,1.04807668]
[1745588005838,0.2887811,603.96,601.96,0.30477114]
[1745588007139,1.24113158,604.29,601.95,1.04807668]
[1745588007438,0.28865415,603.95,601.96,0.3047811]
[1745588007838,1.24113158,604.29,601.96,0.3047811]
[1745588008139,1.24113158,604.57,601.96,0.3047811]
[1745588008439,1.24113158,604.57,601.97,0.3047811]
[1745588008639,0.28864936,604.28,601.98,0.3047811]
[1745588008940,1.24113158,604.57,601.99,0.30475208]
[1745588009138,1.24113158,604.57,601.85,0.30475208]
[1745588009438,1.24113158,604.57,601.86,0.30475208]
[1745588009639,0.28863141,604.56,601.87,0.30475208]
[1745588009940,0.28863141,604.56,601.88,0.30475208]
[1745588010139,1.24113158,604.36,601.92,1.04807668]
[1745588010339,1.24113158,604.36,601.93,0.30475208]
[1745588012043,1.24113158,604.36,601.92,1.04807668]
[1745588012239,1.24113158,604.36,601.93,0.30483349]
[1745588012742,1.24113158,604.36,601.93,1.56883349]
[1745588012944,1.24113158,604.49,601.94,0.30483349]
[1745588013347,0.28865176,604.48,601.95,1.263]
[1745588013548,0.28865176,604.48,601.96,0.30483349]
[1745588016043,1.24113158,604.47,601.96,0.30483349]
[1745588016648,1.24113158,604.47,601.95,1.263]
[1745588016849,1.24113158,604.47,601.96,0.30475231]
[1745588018252,0.28865176,604.48,601.95,1.263]
[1745588018452,0.28865176,604.48,601.96,0.30474157]
[1745588019053,1.24113158,604.59,601.96,0.30474157]
[1745588019753,0.28858952,604.58,601.96,0.30474157]
[1745588019951,0.28858952,604.58,601.97,0.30470948]
[1745588020151,0.28858952,604.58,601.96,0.30470948]
[1745588020351,0.28858952,604.58,601.97,0.30470948]
[1745588020550,0.28858952,604.58,601.96,0.30470948]
[1745588020750,0.28858952,604.58,601.97,0.30470948]
[1745588020950,0.28858952,604.58,601.96,0.30470948]
[1745588021148,0.28858952,604.58,601.97,0.30470948]
[1745588021348,0.28858952,604.58,601.95,1.263]
[1745588021549,0.28858952,604.58,601.96,0.30470812]
[1745588022052,1.24113158,605.22,601.96,0.30470812]
[1745588022352,0.28851415,604.57,601.96,0.30470812]
[1745588022651,1.24113158,605.22,601.96,0.30470812]
[1745588023555,0.28851415,605.21,601.96,0.30470812]
[1745588023752,1.24113158,605.05,601.96,0.30470812]
[1745588024452,1.24113158,605.05,601.95,1.263]
[1745588024652,1.24113158,605.05,601.96,0.30468257]
[1745588024848,1.24113158,605.05,601.97,0.30468257]
[1745588025050,1.24113158,605.05,601.98,0.30468257]
[1745588025255,1.24113158,605.05,601.99,0.30468257]
[1745588025448,0.28851056,605.04,601.96,0.30468257]
[1745588025653,0.28851056,605.04,601.97,0.30468257]
[1745588025854,0.28851056,605.04,601.96,0.30468257]
[1745588026053,0.28851056,605.04,601.97,0.30468257]
[1745588026250,0.28851056,605.04,601.98,0.30468257]
[1745588026454,0.28851056,605.04,601.99,0.30468257]
[1745588026655,1.24113158,604.82,602.0,0.30468257]
[1745588026853,1.24113158,604.82,602.01,0.30468257]
[1745588027049,1.24113158,604.82,601.96,0.30468257]
[1745588027355,1.24113158,604.82,601.97,0.30468257]
[1745588027555,1.24113158,604.82,601.95,1.55151056]
[1745588027856,1.24113158,604.82,601.96,0.30464514]
[1745588028051,1.24113158,604.82,601.97,0.30464514]
[1745588028256,1.24113158,604.82,601.98,0.30464514]
[1745588028457,0.2885285,604.81,601.99,0.30464514]
[1745588028758,0.2885285,604.81,602.0,0.30464514]
[1745588028957,0.2885285,604.81,602.01,0.30464514]
[1745588029256,0.2885285,604.81,601.96,0.30464514]
[1745588029556,0.2885285,604.81,602.02,1.092]
[1745588029856,0.2885285,604.81,602.03,0.30464514]
[1745588030656,0.2885285,604.81,602.02,1.092]
[1745588030855,0.2885285,604.81,602.03,0.30468543]
[1745588031254,1.24113158,604.94,602.03,0.30468543]
[1745588031454,0.28852252,604.8,602.03,0.30468543]
[1745588031657,1.24113158,604.94,602.03,0.30468543]
[1745588031858,1.24113158,604.71,602.03,0.30468543]
[1745588032559,0.28855004,604.7,602.03,0.30468543]
[1745588033759,0.28855004,604.7,602.02,1.092]
[1745588033960,0.28855004,604.7,602.03,0.30466973]
[1745588034559,0.28855004,604.7,602.04,0.30466973]
[1745588034759,0.28855004,604.7,602.05,0.30466973]
[1745588034955,0.28855004,604.7,602.06,0.30466973]
[1745588035261,1.24113158,604.65,602.07,0.30466973]
[1745588035457,1.24113158,604.65,602.08,0.30466973]
[1745588035658,1.24113158,604.65,602.09,0.30466973]
[1745588035858,1.24113158,604.65,602.1,0.30466973]
[1745588036058,1.24113158,604.65,602.02,1.092]
[1745588036059,1.24113158,604.65,602.11,0.30466973]
[1745588036254,1.24113158,604.65,602.12,0.30466973]
[1745588036461,1.24113158,604.65,602.13,0.30466973]
[1745588036761,1.24113158,604.65,602.14,0.30466973]
[1745588037062,1.24113158,604.65,602.15,0.30466973]
[1745588037262,1.24113158,604.65,602.16,0.30466973]
[1745588037458,0.2885309,604.64,602.17,0.30466973]
[1745588037761,0.2885309,604.64,602.18,0.30466973]
[1745588037956,0.2885309,604.64,602.19,0.30466973]
[1745588038161,0.2885309,604.64,602.15,0.30466973]
[1745588038362,1.24113158,604.47,602.18,1.04807668]
[1745588038661,1.24113158,604.47,602.19,0.30458702]
[1745588039362,1.24113158,604.47,602.2,1.348]
[1745588039557,1.24113158,604.47,602.21,0.30458702]
[1745588039962,1.24113158,604.47,602.2,1.348]
[1745588040161,1.24113158,604.47,602.21,0.30460978]
[1745588040358,0.28851894,604.46,602.21,0.30460978]
[1745588041064,0.28851894,604.46,602.2,1.348]
[1745588041364,0.28851894,604.46,602.26,1.04807668]
[1745588041565,0.28851894,604.46,602.27,0.30460834]
[1745588043266,1.24113158,604.82,602.27,0.30460834]
[1745588043467,0.28846991,604.45,602.27,0.30460834]
[1745588043863,1.24113158,605.0,602.27,0.30460834]
[1745588044064,1.24113158,605.0,602.2,1.348]
[1745588044260,1.24113158,605.0,602.21,0.3045831]
[1745588044464,1.24113158,605.0,602.21,1.8385831]
[1745588044664,0.28844361,604.99,602.22,0.3045831]
[1745588044968,0.28844361,604.99,602.23,0.3045831]
[1745588045164,0.28844361,604.99,602.24,0.3045831]
[1745588045364,0.28844361,604.99,602.25,0.3045831]
[1745588045563,0.28844361,604.99,602.26,0.3045831]
[1745588045762,0.28844361,604.99,602.22,0.3045831]
[1745588046266,0.28844361,604.99,602.21,1.534]
[1745588046267,0.28844361,604.99,602.23,0.3045831]
[1745588046465,0.28844361,604.99,602.21,1.534]
[1745588046466,0.28844361,604.99,602.22,0.3045831]
[1745588046669,1.24113158,604.69,602.42,1.04807668]
[1745588047166,1.24113158,604.69,602.43,0.30452288]
[1745588047366,1.24113158,604.69,602.42,1.04807668]
[1745588047566,1.24113158,604.69,602.44,0.30449092]
[1745588047969,1.24113158,604.69,602.43,0.30449092]
[1745588048169,1.24113158,604.69,602.45,0.30449092]
[1745588048371,1.24113158,604.69,602.46,0.30449092]
[1745588048669,1.24113158,604.69,602.47,0.30449092]
[1745588048864,1.24113158,604.69,602.47,1.065]
[1745588049067,2.4000911,604.99,602.48,0.30449092]
[1745588049068,0.28844361,604.99,602.48,0.30449092]
[1745588049367,1.24113158,605.38,602.48,0.30449092]
[1745588050269,1.24113158,605.38,602.47,1.065]
[1745588050470,0.28830142,605.37,602.48,0.30444943]
[1745588050670,0.28830142,605.37,602.49,0.30444943]
[1745588050867,0.28830142,605.37,602.5,0.30444943]
[1745588051067,0.28830142,605.37,602.51,0.30444943]
[1745588051264,0.28830142,605.37,602.52,0.30444943]
[1745588051466,0.28830142,605.37,602.53,0.30444943]
[1745588051669,0.28830142,605.37,602.54,0.30444943]
[1745588051869,0.28830142,605.37,602.55,0.30437379]
[1745588052063,0.28830142,605.37,602.47,1.065]
[1745588052064,1.24113158,605.43,602.56,0.30437379]
[1745588052269,1.24113158,605.43,602.57,0.30437379]
[1745588052470,0.28826918,605.36,602.58,0.30437379]
[1745588052770,0.28826918,605.36,602.59,0.30437379]
[1745588052968,0.28826918,605.36,602.6,0.30437379]
[1745588053171,0.28826918,605.36,602.61,0.30437379]
[1745588053669,0.28826918,605.36,602.62,0.30437379]
[1745588053869,0.28826918,605.36,602.63,0.30437379]
[1745588054073,1.24113158,605.33,602.68,1.04807668]
[1745588054373,1.24113158,605.33,602.69,0.30437379]
[1745588054671,1.24113158,605.33,602.7,0.30437379]
[1745588054874,1.24113158,605.33,602.71,0.30437379]
[1745588055073,1.24113158,605.33,602.72,0.30437379]
[1745588055273,1.24113158,605.33,602.73,0.30437379]
[1745588055573,1.24113158,605.33,602.74,0.30437379]
[1745588055770,1.24113158,605.33,602.75,0.30437379]
[1745588056072,1.24113158,605.33,602.76,0.30437379]
[1745588056268,1.24113158,605.33,602.77,0.30437379]
[1745588056466,0.28820831,605.32,602.69,0.30437379]
[1745588056666,0.28820831,605.32,602.7,0.30437379]
[1745588056867,0.28820831,605.32,602.71,0.30437379]
[1745588057172,0.28820831,605.32,602.72,0.30437379]
[1745588057374,0.28820831,605.32,602.73,0.30437379]
[1745588057569,0.28820831,605.32,602.74,0.30437379]
[1745588057772,0.28820831,605.32,602.75,0.30437379]
[1745588057974,0.28820831,605.32,602.76,0.30419938]
[1745588058274,1.24113158,605.59,602.77,0.30419938]
[1745588058573,1.24113158,605.59,602.78,0.30419938]
[1745588058772,1.24113158,605.59,602.79,0.30419938]
[1745588058976,1.24113158,605.59,602.8,0.30419938]
[1745588059175,0.28813552,605.58,602.81,0.30419938]
[1745588059373,0.28813552,605.58,602.82,0.30419938]
[1745588059574,0.28813552,605.58,602.83,0.30419938]
[1745588059873,0.28813552,605.58,602.84,0.30419938]
[1745588060070,0.28813552,605.58,602.85,0.30419938]
[1745588060271,0.28813552,605.58,602.86,0.30419938]
[1745588060471,0.28813552,605.58,602.87,0.30419938]
[1745588060670,0.28813552,605.58,602.88,0.30419938]
[1745588060871,0.28813552,605.58,602.77,1.286]
[1745588061071,1.24113158,605.95,602.78,0.30417419]
[1745588061377,0.28807112,605.57,602.79,0.30417419]
[1745588061677,0.28807112,605.57,602.77,1.286]
[1745588062577,0.28781619,608.02,602.84,0.30417419]
[1745588062877,1.23756858,606.16,602.85,0.30417419]
[1745588063078,1.23756858,606.16,602.86,0.30417419]
[1745588063277,1.23756858,606.16,602.87,0.30417419]
[1745588063572,1.23756858,606.16,602.88,0.30417419]
[1745588063776,1.23756858,606.16,602.89,0.30417419]
[1745588063978,1.23756858,606.16,602.77,1.286]
[1745588064175,1.23756858,606.16,602.78,0.30417242]
[1745588064376,1.23756858,606.16,602.79,0.30417242]
[1745588064676,1.23756858,606.16,602.8,0.30417242]
[1745588064877,1.23756858,606.16,602.81,0.30417242]
[1745588065080,1.23756858,606.29,602.82,0.30417242]
[1745588065279,1.23756858,606.29,602.83,0.30417242]
[1745588065478,1.23756858,606.29,602.77,1.286]
[1745588065678,1.23756858,606.29,602.78,0.30418365]
[1745588065875,1.23756858,606.29,602.79,0.30418365]
[1745588066075,1.23756858,606.29,602.8,0.30418365]
[1745588066277,1.23756858,606.29,602.81,0.30418365]
[1745588066482,1.23756858,606.29,602.82,0.30418365]
[1745588066676,1.23756858,606.29,602.83,0.30418365]
[1745588066981,1.23756858,606.43,602.84,0.30418365]
[1745588067177,1.23756858,606.43,602.85,0.30418365]
[1745588067379,1.23756858,606.43,602.86,0.30418365]
[1745588067681,1.23756858,606.43,602.87,0.30418365]
[1745588067881,1.23756858,606.43,602.88,0.30418365]
[1745588068081,1.23756858,606.43,602.89,0.30418365]
[1745588068281,1.23756858,606.43,602.9,0.30418365]
[1745588068581,1.23756858,606.43,602.91,0.30416633]
[1745588068776,1.23756858,606.43,602.92,0.30416633]
[1745588068976,1.23756858,606.43,602.93,0.30416633]
[1745588069175,1.23756858,606.43,602.94,0.30416633]
[1745588069379,1.23756858,606.43,602.95,0.30416633]
[1745588069780,1.23756858,606.43,602.96,0.30416633]
[1745588070081,1.23756858,606.43,602.97,0.30416865]
[1745588070382,0.28801867,606.42,602.98,0.30416865]
[1745588070681,1.23756858,606.36,602.99,0.30416865]
[1745588070879,1.23756858,606.36,603.0,0.30416865]
[1745588071080,1.23756858,606.36,603.01,0.30416865]
[1745588071283,1.23756858,606.36,603.02,0.30416865]
[1745588071480,1.23756858,606.36,602.99,1.304]
[1745588071676,1.23756858,606.36,603.0,0.30416865]
[1745588071879,1.23756858,606.36,603.01,0.30416865]
[1745588072077,1.23756858,606.36,603.02,0.30416865]
[1745588072381,1.23756858,606.36,603.03,0.30416865]
[1745588072577,1.23756858,606.36,603.04,0.30416865]
[1745588072779,1.23756858,606.36,603.0,0.30416865]
[1745588073076,1.23756858,606.35,603.01,0.30418422]
[1745588073274,1.23756858,606.35,603.0,0.30418422]
[1745588073478,1.52558129,606.35,603.01,0.30418422]
[1745588073680,1.52558129,606.35,603.02,0.30418422]
[1745588073881,1.52558129,606.35,603.03,0.30418422]
[1745588074084,1.52558129,606.35,603.0,0.30418422]
[1745588074276,1.52558129,606.35,603.01,0.30418422]
[1745588074578,1.52558129,606.35,602.99,1.304]
[1745588074782,1.52558129,606.35,603.0,0.30420605]
[1745588075682,0.28801271,606.35,603.0,0.30420605]
[1745588076077,0.28801271,606.35,602.99,1.304]
[1745588076282,0.28801271,606.35,603.0,0.30420791]
[1745588077684,0.28801271,606.35,602.99,1.304]
[1745588077985,0.28801271,606.35,603.0,0.30419973]
[1745588079080,1.23756858,606.57,603.0,0.30419973]
[1745588079385,0.28799245,606.34,602.99,1.304]
[1745588079580,0.28799245,606.34,603.0,0.30419706]
[1745588079780,1.23756858,606.57,603.0,0.30419706]
[1745588080485,0.28797577,606.56,603.0,0.30419706]
[1745588081085,1.23756858,606.32,603.0,0.30419706]
[1745588081285,1.23756858,606.32,603.01,1.585]
[1745588081484,1.23756858,606.32,603.02,0.30419706]
[1745588082580,1.23756858,606.32,603.01,1.585]
[1745588082781,1.23756858,606.32,603.02,0.3041642]
[1745588083586,0.28797577,606.56,603.02,0.3041642]
[1745588084985,0.28797577,606.56,603.02,1.3721642]
[1745588085185,1.23756858,606.79,603.03,0.3041642]
[1745588085386,0.28794122,606.55,603.03,0.3041642]
[1745588085686,1.23756858,606.79,603.03,0.3041642]
[1745588086482,0.28794122,606.78,603.03,0.3041642]
[1745588087187,0.28794122,606.78,603.02,1.068]
[1745588087390,0.28794122,606.78,603.03,0.30416402]
[1745588087688,1.23756858,606.55,603.03,0.30416402]
[1745588088388,0.28796981,606.54,603.03,0.30416402]
[1745588090088,0.28796981,606.54,603.04,0.30416402]
[1745588090389,0.28796981,606.54,603.05,0.30414154]
[1745588090588,0.28796981,606.54,603.06,0.30414154]
[1745588090788,0.28796981,606.54,603.07,0.30414154]
[1745588090987,0.28796981,606.54,603.08,0.30414154]
[1745588091184,0.28796981,606.54,603.02,1.068]
[1745588091185,1.23756858,606.55,603.09,0.30414154]
[1745588091484,1.23756858,606.55,603.02,1.068]
[1745588091485,1.23756858,606.36,603.1,0.30414154]
[1745588091690,1.23756858,606.36,603.11,0.30414154]
[1745588091884,1.23756858,606.36,603.12,0.30414154]
[1745588092089,1.23756858,606.36,603.13,0.30414154]
[1745588092289,1.23756858,606.36,603.14,0.30414154]
[1745588092490,0.28796147,606.35,603.07,0.28796147]
[1745588092691,0.28796147,606.35,603.08,0.30414154]
[1745588092887,0.28796147,606.35,603.09,0.30414154]
[1745588093087,0.28796147,606.35,603.08,0.30414154]
[1745588093392,0.28796147,606.35,603.09,0.30414094]
[1745588093591,0.28796147,606.35,603.08,0.30414094]
[1745588093794,1.23756858,605.56,603.48,1.03794321]
[1745588093993,1.23756858,605.56,603.49,0.30414094]
[1745588094490,0.28800437,605.55,603.49,0.30414094]
[1745588094791,0.28800437,605.55,603.48,1.03794321]
[1745588096999,1.23756858,605.52,603.42,1.03794321]
[1745588097395,0.28803059,605.51,603.42,1.03794321]
[1745588099700,0.28803059,605.51,603.31,1.3259738]
[1745588100000,0.28803059,605.51,603.42,0.971]
[1745588100200,1.23756858,605.67,603.42,0.971]
[1745588100395,0.28801271,605.5,603.42,0.971]
[1745588100700,1.23756858,605.67,603.42,0.971]
[1745588102000,0.28802225,605.66,603.42,0.971]
[1745588103203,1.23756858,605.72,603.42,0.971]
[1745588103399,0.28802106,605.65,603.42,0.971]
[1745588106407,1.23756858,605.53,603.42,0.971]
[1745588108706,1.23756858,605.41,603.42,0.971]
[1745588109808,1.23756858,605.41,603.42,2.006]
[1745588110909,1.23756858,605.38,603.42,2.006]
[1745588111707,1.23756858,605.38,603.42,3.245]
[1745588113212,1.23756858,605.4,603.42,3.245]
[1745588113514,0.28805682,605.37,603.42,3.245]
[1745588114606,0.28805682,605.37,603.43,0.30414965]
[1745588115111,1.23756858,605.4,603.43,0.30414965]
[1745588115312,1.23756858,605.24,603.43,0.30414965]
[1745588117614,1.23756858,605.24,603.42,3.53304728]
[1745588118214,1.23756858,605.24,603.42,3.245]
[1745588118715,1.23756858,605.12,603.42,4.28294321]
[1745588119520,1.23756858,605.12,603.42,4.57101195]
[1745588120821,0.28806874,605.19,603.42,3.53306874]
[1745588121215,1.23756858,605.48,603.42,3.245]
[1745588121415,0.28802106,605.21,603.42,3.53302106]
[1745588121721,1.23756858,605.48,603.42,3.53302106]
[1745588122422,2.10558543,606.24,603.42,3.53302106]
[1745588122624,0.28801867,605.47,603.42,3.53302106]
[1745588124218,0.28761519,608.68,603.42,2.274]
[1745588124417,0.28761519,608.68,603.43,0.30407821]
[1745588124819,1.25720585,605.67,603.43,0.30407821]
[1745588125526,1.25720585,605.67,603.43,1.76507821]
[1745588125726,1.25720585,605.67,603.43,1.461]
[1745588125919,1.25720585,605.67,603.44,0.30403197]
[1745588126525,1.25720585,605.67,603.43,2.518]
[1745588127125,1.25720585,605.69,603.43,2.518]
[1745588127326,1.25720585,605.69,603.46,1.05350748]
[1745588129224,1.25720585,605.69,603.47,0.30398332]
[1745588129628,1.25720585,606.32,603.47,0.30398332]
[1745588129827,1.25720585,606.32,603.48,0.30398332]
[1745588130127,1.25720585,606.32,603.43,2.518]
[1745588130325,1.25720585,606.32,603.44,0.30399659]
[1745588130526,0.28786024,606.31,603.44,0.59185683]
[1745588130827,0.28786024,606.31,603.45,0.30399659]
[1745588131827,0.28786024,606.31,603.46,0.3039681]
[1745588132127,1.25720585,605.89,603.47,0.3039681]
[1745588133928,1.25720585,606.26,603.48,0.3039681]
[1745588134127,1.25720585,606.26,603.49,0.3039681]
[1745588134423,0.28781381,606.25,603.5,0.3039681]
[1745588134624,0.28781381,606.25,603.47,0.3039681]
[1745588134828,0.28781381,606.25,603.48,0.3039681]
[1745588135028,0.28781381,606.25,603.49,0.3039681]
[1745588135224,0.28781381,606.25,603.5,0.3039681]
[1745588135528,0.28781381,606.25,603.51,0.3039681]
[1745588135731,0.28781381,606.25,603.52,0.3039681]
[1745588135921,0.28781381,606.25,603.53,0.3039681]
[1745588136127,0.28781381,606.25,603.46,1.54381381]
[1745588136428,0.28781381,606.25,603.47,0.30386425]
[1745588136630,0.28781381,606.25,603.48,0.30386425]
[1745588136823,0.28781381,606.25,603.49,0.30386425]
[1745588137025,0.28781381,606.25,603.5,0.30386425]
[1745588137229,0.28781381,606.25,603.51,0.30386425]
[1745588137528,0.28781381,606.25,603.52,0.30386425]
[1745588137831,1.25720585,606.2,603.53,0.30386425]
[1745588138028,1.25720585,606.2,603.54,0.30386425]
[1745588138226,1.25720585,606.2,603.55,0.30386425]
[1745588138430,1.25720585,606.2,603.56,0.30386425]
[1745588138633,1.25720585,606.2,603.57,0.30386425]
[1745588138830,1.25720585,606.2,603.58,0.30386425]
[1745588139025,1.25720585,606.2,603.59,0.30386425]
[1745588139330,1.25720585,606.2,603.6,0.30386425]
[1745588139532,1.25720585,606.2,603.61,0.30386425]
[1745588139726,1.25720585,606.2,603.62,0.30386425]
[1745588139925,1.25720585,606.2,603.63,0.30386425]
[1745588140130,1.25720585,606.2,603.64,0.30386425]
[1745588140330,1.25720585,606.2,603.5,1.05350748]
[1745588140331,1.25720585,606.2,603.65,0.30386425]
[1745588140526,1.25720585,606.2,603.51,0.30386425]
[1745588140732,0.28781381,606.25,603.52,0.30388214]
[1745588140928,0.28781381,606.25,603.53,0.30388214]
[1745588141128,0.28781381,606.25,603.54,0.30388214]
[1745588141329,0.28781381,606.25,603.55,0.30388214]
[1745588141529,0.28781381,606.25,603.56,0.30388214]
[1745588141730,0.28781381,606.25,603.57,0.30388214]
[1745588141930,0.28781381,606.25,603.58,0.30388214]
[1745588142134,0.28781381,606.25,603.5,1.05350748]
[1745588142332,1.25720585,606.26,603.51,0.3038685]
[1745588142527,1.25720585,606.26,603.52,0.3038685]
[1745588142731,1.25720585,606.26,603.51,0.3038685]
[1745588142932,1.25720585,606.33,603.52,0.3038685]
[1745588143131,1.25720585,606.33,603.47,0.3038685]
[1745588143331,1.25720585,606.33,603.48,0.3038685]
[1745588143629,0.28783167,606.32,603.46,1.54383167]
[1745588143831,0.28783167,606.32,603.47,0.30395117]
[1745588146635,0.28783167,606.32,603.46,0.28783167]
[1745588146830,0.28783167,606.32,603.47,0.30396901]
[1745588147536,0.28783167,606.32,603.48,1.449]
[1745588147737,0.28783167,606.32,603.49,0.30396901]
[1745588148337,1.25720585,606.58,603.49,0.30396901]
[1745588148539,1.25720585,606.27,603.5,1.437]
[1745588148740,1.25720585,606.27,603.51,0.30396901]
[1745588149539,0.28788643,606.26,603.51,0.30396901]
[1745588151042,1.54509228,606.26,603.51,0.30396901]
[1745588151241,1.25720585,606.26,603.51,0.30396901]
[1745588151442,0.28788643,606.25,603.51,0.30396901]
[1745588151843,0.28788643,606.25,603.5,1.437]
[1745588153545,0.28788643,606.25,603.51,0.30405841]
[1745588153738,0.28788643,606.25,603.5,1.437]
[1745588155947,1.25720585,605.9,603.5,1.437]
[1745588156247,1.25720585,605.9,603.51,0.30408204]
[1745588158249,1.25720585,605.96,603.51,0.30408204]
[1745588158446,0.28792574,605.89,603.51,0.30408204]
[1745588158845,0.28792574,605.89,603.5,1.72492574]
[1745588159042,0.28792574,605.89,603.51,0.3040182]
[1745588160248,1.25720585,605.96,603.51,0.3040182]
[1745588161450,0.28791382,605.95,603.51,0.3040182]
[1745588162350,1.25720585,605.75,603.51,0.3040182]
[1745588163454,0.28790549,605.74,603.51,0.3040182]
[1745588165956,0.28790549,605.74,603.5,1.72490549]
[1745588166159,0.28790549,605.74,603.51,0.30395147]